bitfinex/quotes_ETHUSD_20250415
["timestamp","ask_amount","ask_price","bid_price","bid_amount"]
[1744714070339,6.837585,1627.3,1627.0,0.8311]
[1744714070510,6.14557,1627.2,1627.0,0.8311]
[1744714070929,0.692285,1627.3,1627.0,6.97728]
[1744714071246,0.692285,1627.3,1627.1,6.1459]
[1744714072043,6.837435,1627.3,1627.0,6.97728]
[1744714072358,6.837435,1627.3,1627.0,6.97726]
[1744714072554,0.692285,1627.3,1627.1,6.14575]
[1744714073036,6.14523,1627.3,1627.0,6.97727]
[1744714073244,13.06784,1627.4,1627.1,6.14589]
[1744714073446,13.06784,1627.4,1627.0,13.12342]
[1744714073817,6.14539,1627.3,1627.0,6.97726]
[1744714074041,6.14565,1627.2,1626.9,6.14641]
[1744714074244,6.760215,1627.2,1626.8,9.94053]
[1744714074434,6.760215,1627.2,1626.9,6.14653]
[1744714074733,0.614565,1627.2,1626.9,6.14665]
[1744714075121,0.614565,1627.2,1626.9,12.2933]
[1744714075322,0.614565,1627.2,1627.0,6.14621]
[1744714075629,0.614565,1627.2,1627.0,12.29239]
[1744714075813,0.778,1627.4,1626.9,6.1466]
[1744714076018,18.06884,1627.3,1627.0,6.14624]
[1744714076352,18.06868,1627.3,1627.0,6.14616]
[1744714076554,6.14558,1627.2,1626.9,12.29314]
[1744714077251,11.9233,1627.3,1627.0,6.14606]
[1744714077450,13.19343,1627.3,1627.0,12.29224]
[1744714077754,0.778,1627.4,1626.8,3.7936]
[1744714078051,0.8005,1627.5,1627.1,0.7923]
[1744714078255,12.72311,1627.5,1627.2,6.14528]
[1744714078626,12.72306,1627.5,1627.2,6.14528]
[1744714078952,1.272306,1627.4,1627.1,6.93802]
[1744714079523,7.417176,1627.4,1627.1,6.93802]
[1744714079724,7.417176,1627.4,1627.1,13.08381]
[1744714079925,1.272306,1627.4,1627.1,13.08381]
[1744714080356,1.272306,1627.4,1627.1,6.93802]
[1744714080558,1.272306,1627.4,1627.2,6.14549]
[1744714080724,1.272306,1627.4,1627.3,6.14514]
[1744714080924,11.0981,1627.7,1627.1,6.93812]
[1744714081245,6.14413,1627.6,1627.3,6.14504]
[1744714081825,12.28839,1627.6,1627.2,6.14532]
[1744714082224,6.14413,1627.6,1627.2,12.29073]
[1744714082431,14.012533,1627.6,1627.2,6.14532]
[1744714082663,14.012533,1627.6,1627.2,12.29074]
[1744714082837,7.868353,1627.6,1627.3,6.14512]
[1744714083037,1.724223,1627.6,1627.3,12.29008]
[1744714083761,7.868333,1627.6,1627.3,6.14502]
[1744714083928,0.7868333,1627.5,1627.3,6.14502]
[1744714084129,0.7868333,1627.5,1627.2,6.14536]
[1744714084547,0.7868333,1627.5,1627.3,6.14499]
[1744714084937,10.3404,1627.7,1627.5,6.14408]
[1744714085145,5.778,1627.7,1627.6,6.14401]
[1744714085676,47.928,1627.9,1627.7,6.14358]
[1744714086643,0.7872,1628.1,1627.8,6.14313]
[1744714086850,0.7872,1628.1,1627.8,12.28628]
[1744714086851,5.777,1628.0,1627.8,12.28628]
[1744714087043,6.14157,1628.3,1627.9,6.14273]
[1744714087296,6.93795,1628.1,1627.8,6.1432]
[1744714087499,0.614157,1628.2,1627.7,0.8217]
[1744714087648,0.614157,1628.2,1627.9,6.14258]
[1744714087649,6.755917,1628.2,1627.9,6.14258]
[1744714087987,6.755917,1628.2,1627.9,12.28535]
[1744714088352,0.614157,1628.2,1627.9,6.14258]
[1744714088552,6.755977,1628.2,1627.9,12.28536]
[1744714088749,0.614157,1628.2,1627.9,12.28536]
[1744714088947,0.614157,1628.2,1627.9,6.14275]
[1744714089144,6.93721,1628.3,1627.5,0.8063]
[1744714089404,6.93721,1628.3,1627.9,6.14261]
[1744714089896,13.07893,1628.3,1627.9,12.28522]
[1744714090078,0.7957,1628.3,1628.0,6.14234]
[1744714090377,2.76956009,1628.3,1628.1,6.14212]
[1744714090577,2.76956009,1628.3,1627.7,0.8063]
[1744714090759,9.777,1628.4,1628.2,6.14173]
[1744714091171,9.777,1628.4,1628.3,6.14137]
[1744714091346,59.84334,1628.6,1628.3,6.14137]
[1744714091547,53.703,1628.6,1628.3,12.28261]
[1744714091756,53.703,1628.6,1628.2,6.14164]
[1744714091957,12.28152,1628.5,1628.1,0.8063]
[1744714092159,6.14066,1628.5,1628.1,0.8063]
[1744714092405,59.15287,1628.6,1628.2,12.28324]
[1744714092406,65.2934,1628.6,1628.2,12.28324]
[1744714092949,65.2934,1628.6,1628.3,6.14124]
[1744714093265,71.43368,1628.6,1628.2,12.28328]
[1744714093479,6.1449596,1628.5,1628.2,6.14161]
[1744714093673,12.2857296,1628.5,1628.2,6.14161]
[1744714094501,12.2857296,1628.5,1628.2,12.28324]
[1744714095196,12.2857296,1628.5,1628.2,6.14161]
[1744714095409,53.703,1628.6,1628.4,6.14099]
[1744714095564,53.703,1628.6,1628.4,6.14085]
[1744714096562,53.703,1628.6,1628.3,12.2826]
[1744714096761,53.703,1628.6,1628.4,6.14096]
[1744714097598,53.703,1628.6,1628.3,12.2826]
[1744714097780,53.703,1628.6,1628.4,12.28179]
[1744714097967,53.703,1628.6,1628.5,6.14062]
[1744714098167,53.703,1628.6,1628.4,6.14086]
[1744714098404,53.703,1628.6,1628.4,13.09633]
[1744714098695,53.703,1628.6,1628.5,6.14062]
[1744714098873,53.703,1628.6,1628.4,6.95546]
[1744714099079,53.703,1628.6,1628.5,6.14062]
[1744714099401,5.777,1628.6,1628.5,6.14062]
[1744714100382,5.684,1628.9,1628.5,1.309603]
[1744714100705,5.684,1628.9,1628.8,6.13948]
[1744714100900,5.684,1628.9,1628.7,6.13951]
[1744714101266,5.684,1628.9,1628.6,6.95475]
[1744714101471,12.59032,1628.9,1628.5,12.28108]
[1744714101672,19.988762,1628.9,1628.5,12.28108]
[1744714101872,13.849352,1628.9,1628.6,6.14021]
[1744714102578,13.849352,1628.9,1628.6,6.14013]
[1744714103006,7.710032,1628.9,1628.6,6.14018]
[1744714103299,13.849152,1628.9,1628.6,6.14018]
[1744714103502,5.684,1628.9,1628.7,6.13962]
[1744714104102,5.684,1628.9,1628.6,12.2803]
[1744714104307,6.1396,1628.8,1628.5,6.14051]
[1744714104623,6.1396,1628.8,1628.5,12.28096]
[1744714104976,6.1396,1628.8,1628.5,6.14048]
[1744714105176,7.935881,1628.8,1628.5,6.14048]
[1744714106074,14.884311,1628.8,1628.5,6.14048]
[1744714106509,8.744681,1628.8,1628.5,12.281]
[1744714106706,2.605081,1628.8,1628.6,6.1402]
[1744714109109,8.744731,1628.8,1628.5,6.14053]
[1744714109301,8.744731,1628.8,1628.5,12.28106]
[1744714109501,0.8744731,1628.7,1628.4,6.93168]
[1744714109693,6.14024,1628.6,1628.3,12.28258]
[1744714110282,12.28068,1628.6,1628.3,6.14129]
[1744714110482,6.14024,1628.6,1628.3,6.14127]
[1744714110684,6.14084,1628.5,1628.2,6.95145]
[1744714110896,13.06479,1628.5,1628.2,6.14165]
[1744714111093,14.371269,1628.5,1628.2,6.14165]
[1744714111291,6.14104,1628.4,1628.0,6.93239]
[1744714111497,13.129189,1628.5,1628.2,6.14146]
[1744714111706,6.988479,1628.5,1628.1,6.14212]
[1744714111896,5.682,1628.5,1628.3,6.14117]
[1744714112114,5.682,1628.5,1628.4,6.14099]
[1744714112622,5.682,1628.5,1628.3,13.0726]
[1744714112823,5.682,1628.5,1628.4,6.14099]
[1744714113320,5.682,1628.5,1628.3,6.93137]
[1744714113508,5.682,1628.5,1628.3,13.07262]
[1744714113816,5.682,1628.5,1628.4,6.14099]
[1744714114020,5.682,1628.5,1628.3,13.07262]
[1744714114515,5.682,1628.5,1628.3,6.93137]
[1744714114722,5.682,1628.5,1628.4,6.14099]
[1744714115518,5.682,1628.8,1628.5,6.1404]
[1744714115683,0.5682,1628.7,1628.6,6.14015]
[1744714115886,12.60442,1628.9,1628.6,12.2803]
[1744714116287,6.4652,1628.9,1628.6,6.14012]
[1744714116488,6.4652,1628.9,1628.7,6.13976]
[1744714117015,6.4652,1628.9,1628.6,12.28032]
[1744714117189,14.478822,1628.9,1628.6,6.14016]
[1744714117798,20.618092,1628.9,1628.6,6.14016]
[1744714117990,6.13949,1628.8,1628.5,12.28106]
[1744714118194,6.13949,1628.8,1628.5,6.14049]
[1744714118409,20.618112,1628.9,1628.5,6.14049]
[1744714118613,14.478762,1628.9,1628.6,12.28031]
[1744714118788,20.618012,1628.9,1628.6,6.14011]
[1744714118987,14.478742,1628.9,1628.6,6.14011]
[1744714119388,2.657492,1628.9,1628.6,6.14014]
[1744714119584,6.92234,1628.9,1628.6,12.28028]
[1744714119813,0.7832,1628.9,1628.7,6.13979]
[1744714120117,6.13882,1629.0,1628.7,12.27953]
[1744714120320,6.13882,1629.0,1628.7,6.13974]
[1744714120321,12.27785,1629.0,1628.7,6.13974]
[1744714121117,6.13882,1629.0,1628.7,6.13974]
[1744714121293,12.27769,1629.0,1628.7,6.13974]
[1744714121498,13.580839,1629.0,1628.7,6.13974]
[1744714122203,7.441969,1629.0,1628.7,6.13974]
[1744714122694,7.441969,1629.0,1628.7,6.13973]
[1744714123424,7.441969,1629.0,1628.7,12.27946]
[1744714123628,0.7538,1629.1,1628.9,6.13911]
[1744714123929,5.682,1629.2,1629.0,6.13859]
[1744714124128,5.682,1629.2,1629.1,6.13835]
[1744714125153,0.05,1629.4,1629.3,6.1376]
[1744714125317,0.05,1629.4,1629.3,10.442109]
[1744714125515,0.793,1629.8,1629.7,6.13609]
[1744714125704,5.682,1629.9,1629.7,6.13584]
[1744714125906,5.682,1629.9,1629.6,6.1363]
[1744714126233,11.81771,1629.9,1629.5,6.9064]
[1744714126400,17.95342,1629.9,1629.5,8.210752]
[1744714126599,6.13572,1629.8,1629.5,8.210752]
[1744714127424,6.13572,1629.8,1629.5,14.347492]
[1744714127630,6.13572,1629.8,1629.5,14.347472]
[1744714127831,11.81771,1629.9,1629.5,1.304352]
[1744714127832,5.682,1629.9,1629.5,1.304352]
[1744714128038,5.682,1629.9,1629.3,10.46636995]
[1744714128039,6.13636,1629.7,1629.3,8.211459]
[1744714128220,12.27262,1629.7,1629.4,6.13716]
[1744714128422,12.27262,1629.7,1629.4,7.5720219]
[1744714128626,6.13648,1629.6,1629.4,1.4348619]
[1744714128830,5.655,1629.5,1628.9,3.79431095]
[1744714129016,11.79197,1629.5,1629.1,6.13803]
[1744714129216,5.655,1629.5,1629.3,6.13759]
[1744714129460,6.13771,1629.3,1629.0,6.13867]
[1744714129616,6.13771,1629.3,1629.0,7.1319181]
[1744714130256,6.13812,1629.2,1628.9,6.90873]
[1744714130416,13.08713,1629.3,1629.0,6.13869]
[1744714130618,0.8116,1629.3,1628.9,0.7697]
[1744714130822,6.94935,1629.3,1629.0,6.13873]
[1744714131850,6.13812,1629.2,1628.9,0.7697]
[1744714132539,6.13836,1629.1,1628.9,0.7697]
[1744714133043,6.13812,1629.2,1628.9,8.213601]
[1744714133251,0.8116,1629.3,1628.9,2.074531]
[1744714133623,6.13809,1629.2,1628.9,8.213631]
[1744714133826,12.27624,1629.2,1628.9,8.213631]
[1744714134032,6.13809,1629.2,1628.9,8.213631]
[1744714134237,12.27632,1629.2,1628.9,8.213631]
[1744714134521,6.13886,1629.0,1628.7,6.92696]
[1744714134726,12.27774,1629.0,1628.7,6.92696]
[1744714134955,6.13844,1629.1,1628.8,6.13948]
[1744714135156,6.9493,1629.3,1629.0,6.13862]
[1744714135459,6.13732,1629.4,1629.0,6.1384]
[1744714135652,12.27476,1629.4,1629.0,6.9256]
[1744714135859,6.13772,1629.3,1629.0,6.9256]
[1744714136057,12.27559,1629.3,1629.0,6.9256]
[1744714136263,6.986,1629.5,1629.1,6.1383]
[1744714136435,6.13753,1629.4,1629.0,6.92575]
[1744714136636,5.655,1629.5,1629.3,6.13745]
[1744714136939,11.79195,1629.5,1629.2,6.13786]
[1744714137352,17.92894,1629.5,1629.2,6.13786]
[1744714138067,5.655,1629.5,1629.1,3.02461095]
[1744714138225,6.90181,1629.7,1629.4,6.13708]
[1744714138444,6.90181,1629.7,1629.4,12.27416]
[1744714139192,0.7655,1629.7,1629.4,13.501576]
[1744714139464,13.03815,1629.7,1629.4,1.227416]
[1744714139665,6.90171,1629.7,1629.4,6.13713]
[1744714139873,6.90171,1629.7,1629.4,12.27424]
[1744714140273,6.90171,1629.7,1629.4,6.13708]
[1744714140578,5.655,1629.8,1629.7,6.13609]
[1744714140871,5.655,1629.8,1629.6,6.13629]
[1744714141065,5.655,1629.8,1629.7,6.13609]
[1744714141463,5.655,1629.8,1629.6,13.0119962]
[1744714142079,5.655,1629.8,1629.7,6.13609]
[1744714142276,11.79085,1629.8,1629.5,7.39420195]
[1744714142581,11.79085,1629.8,1629.5,13.53093195]
[1744714142745,11.79085,1629.8,1629.5,1.25747195]
[1744714144286,17.9268,1629.8,1629.5,1.25747195]
[1744714144482,17.92683,1629.8,1629.5,1.25747195]
[1744714144788,11.79085,1629.8,1629.5,1.25747195]
[1744714144977,5.655,1629.8,1629.5,1.25747195]
[1744714146087,11.79092,1629.8,1629.5,1.25747195]
[1744714146768,11.79087,1629.8,1629.5,1.25747195]
[1744714147687,5.655,1629.8,1629.5,1.25747195]
[1744714148090,11.79075,1629.8,1629.5,1.25747195]
[1744714148888,20.31975273,1629.8,1629.4,3.0]
[1744714149090,12.27249,1629.7,1629.4,3.0]
[1744714149256,6.1362,1629.7,1629.4,3.45910947]
[1744714149577,5.655,1629.8,1629.4,3.45910947]
[1744714149757,5.655,1629.8,1629.5,6.13675]
[1744714149956,5.655,1629.8,1629.5,13.23308595]
[1744714150184,5.655,1629.8,1629.5,7.09633595]
[1744714150497,0.7947,1630.0,1629.6,0.7707]
[1744714150651,5.654,1630.1,1629.8,6.13567]
[1744714151076,17.92357,1630.1,1629.7,6.13598]
[1744714151281,6.13507,1630.0,1629.6,6.90707]
[1744714151483,6.13507,1630.0,1629.6,6.90705]
[1744714151682,7.525827,1630.1,1629.7,6.13598]
[1744714151877,11.78876,1630.1,1629.7,6.13598]
[1744714152057,17.92364,1630.1,1629.7,6.13598]
[1744714152387,11.78873,1630.1,1629.7,6.13598]
[1744714152591,6.13501,1630.0,1629.6,16.04344]
[1744714152791,11.78867,1630.1,1629.7,12.27201]
[1744714152994,5.654,1630.1,1629.8,6.13554]
[1744714153188,5.654,1630.1,1629.8,12.27114]
[1744714153498,5.654,1630.1,1629.7,1.604271]
[1744714153700,5.654,1630.1,1629.9,12.27048]
[1744714153900,5.654,1630.1,1630.0,6.93116]
[1744714154603,47.889,1630.3,1630.1,6.13425]
[1744714154800,6.5001,1630.4,1630.2,6.13421]
[1744714154801,5.703,1630.4,1630.2,6.13421]
[1744714155002,0.05,1630.4,1630.3,6.13384]
[1744714155370,0.05,1630.4,1630.2,6.13403]
[1744714155572,0.05,1630.4,1630.2,12.26813]
[1744714155883,0.05,1630.4,1630.2,13.7974041]
[1744714156073,0.05,1630.4,1630.3,6.13384]
[1744714156275,0.05,1630.4,1630.2,13.7974041]
[1744714156498,0.05,1630.4,1630.3,6.13384]
[1744714156889,0.05,1630.4,1630.3,6.93004]
[1744714157089,0.05,1630.4,1630.3,8.24989379]
[1744714158404,0.05,1630.4,1630.3,8.707823]
[1744714160475,0.05,1630.4,1630.3,7.911623]
[1744714162290,0.05,1630.4,1630.2,7.6633041]
[1744714162495,0.05,1630.4,1630.3,6.13384]
[1744714163396,0.05,1630.4,1630.3,9.13384]
[1744714163705,0.05,1630.4,1630.3,9.90984]
[1744714164035,0.05,1630.4,1630.3,9.97116838]
[1744714164193,0.05,1630.4,1630.3,11.98359717]
[1744714165036,0.05,1630.4,1630.3,12.38860408]
[1744714167121,0.05,1630.4,1630.3,11.61260408]
[1744714167325,0.05,1630.4,1630.3,8.14626879]
[1744714167514,0.05,1630.4,1630.3,8.95566879]
[1744714168016,0.05,1630.4,1630.3,9.4247149]
[1744714168327,0.05,1630.4,1630.3,12.4247149]
[1744714169036,0.05,1630.4,1630.3,15.44932585]
[1744714169642,0.05,1630.4,1630.3,12.4247149]
[1744714170127,0.05,1630.4,1630.3,11.95566879]
[1744714170793,0.05,1630.4,1630.2,7.6633041]
[1744714170999,0.05,1630.4,1630.2,13.7974141]
[1744714171394,0.05,1630.4,1630.3,6.13384]
[1744714172203,0.05,1630.4,1630.3,12.95055095]
[1744714173543,1e-05,1630.4,1630.3,16.5251619]
[1744714173727,1e-05,1630.4,1630.3,16.47256569]
[1744714174111,1e-05,1630.4,1630.3,15.92256569]
[1744714176639,1e-05,1630.4,1630.3,21.54256569]
[1744714178644,1e-05,1630.4,1630.3,12.89795474]
[1744714178946,1e-05,1630.4,1630.3,12.10585474]
[1744714180044,1e-05,1630.4,1630.3,12.16718658]
[1744714180726,1e-05,1630.4,1630.3,12.16718656]
[1744714182047,1e-05,1630.4,1630.2,9.15863095]
[1744714182446,1e-05,1630.4,1630.3,6.13384]
[1744714182747,1e-05,1630.4,1630.2,9.15863095]
[1744714183449,1e-05,1630.4,1630.3,6.13384]
[1744714183659,1e-05,1630.4,1630.2,15.29267095]
[1744714183962,1e-05,1630.4,1630.2,15.29272095]
[1744714184151,1e-05,1630.4,1630.3,6.13384]
[1744714186136,1e-05,1630.4,1630.3,7.6630871]
[1744714186678,1e-05,1630.4,1630.3,17.5499871]
[1744714186866,1e-05,1630.4,1630.3,18.0999871]
[1744714187047,1e-05,1630.4,1630.3,17.5499871]
[1744714189353,1e-05,1630.4,1630.3,6.13]
[1744714189576,0.81211,1630.4,1630.3,6.13]
[1744714189737,6.94557,1630.4,1630.3,6.13]
[1744714190141,6.94557,1630.4,1630.0,15.29443095]
[1744714190351,6.94557,1630.4,1630.1,9.13454]
[1744714191368,6.94557,1630.4,1630.1,15.26901]
[1744714191542,0.8121,1630.1,1629.8,6.13568]
[1744714191741,0.8121,1630.1,1630.0,6.13496]
[1744714192046,6.94595,1630.3,1630.0,6.13473]
[1744714192259,13.08004,1630.3,1630.0,6.13473]
[1744714193148,6.13427,1630.2,1629.9,9.13518]
[1744714193687,6.94595,1630.3,1630.0,6.13473]
[1744714194051,0.8121,1630.3,1630.0,6.13473]
[1744714194366,6.94595,1630.3,1630.0,12.26955]
[1744714194567,6.94595,1630.3,1630.0,6.13473]
[1744714194870,6.13434,1630.2,1629.9,9.13526]
[1744714195075,8.815831,1630.3,1629.8,1.9041511]
[1744714195375,6.13511,1630.0,1629.8,3.0]
[1744714195788,6.13534,1629.9,1629.7,6.13]
[1744714196277,6.13572,1629.8,1629.7,6.13]
[1744714197544,6.91702,1629.8,1629.7,6.13]
[1744714198626,2.086536,1629.8,1629.2,12.57568312]
[1744714198900,6.13713,1629.5,1629.2,12.26789]
[1744714200308,11.75651,1629.6,1629.2,15.29248095]
[1744714200506,0.7713,1630.0,1629.6,6.13615]
[1744714200710,0.7713,1630.0,1629.7,6.13593]
[1744714200879,0.7713,1630.0,1629.7,6.13594]
[1744714201221,0.7713,1630.0,1629.7,13.26844509]
[1744714201386,13.04148,1630.0,1629.7,7.13247509]
[1744714201590,13.04148,1630.0,1629.6,9.96586095]
[1744714202424,13.04148,1630.0,1629.6,16.10231095]
[1744714203635,6.90631,1630.0,1629.7,6.13594]
[1744714204005,0.7713,1630.0,1629.6,9.96581095]
[1744714204340,6.13551,1629.9,1629.6,6.9412]
[1744714204536,0.7713,1630.0,1629.6,1.3078]
[1744714204694,6.13594,1629.8,1629.5,6.13674]
[1744714204895,12.27191,1629.8,1629.5,6.13674]
[1744714205110,6.13538,1629.9,1629.5,6.13673]
[1744714205311,6.90636,1630.0,1629.7,6.13589]
[1744714205608,0.7713,1630.0,1629.8,6.13566]
[1744714205824,0.7713,1630.0,1629.7,13.04034]
[1744714206008,0.7713,1630.0,1629.7,8.5108151]
[1744714206236,6.90627,1630.0,1629.7,8.5108151]
[1744714206664,0.7713,1630.0,1629.7,14.6467751]
[1744714206814,17.89056,1630.1,1629.7,14.6467751]
[1744714206815,11.75564,1630.1,1629.8,6.13571]
[1744714207019,11.75564,1630.1,1629.8,6.13568]
[1744714207218,17.89039,1630.1,1629.8,6.13568]
[1744714207412,11.75564,1630.1,1629.8,6.13568]
[1744714207612,17.89041,1630.1,1629.8,7.60032551]
[1744714207814,17.89041,1630.1,1629.8,1.46464551]
[1744714208113,11.75564,1630.1,1629.8,7.60028551]
[1744714208308,5.621,1630.1,1629.9,6.13522]
[1744714209067,6.13392,1630.3,1630.0,12.26964]
[1744714209275,12.51346,1630.4,1630.1,6.13448]
[1744714209889,12.51346,1630.4,1630.1,12.26892]
[1744714210120,12.51346,1630.4,1630.1,6.13444]
[1744714210469,1e-05,1630.4,1630.2,9.15865095]
[1744714210768,6.13356,1630.4,1630.1,7.7456741]
[1744714210970,1e-05,1630.4,1630.1,13.8800941]
[1744714211194,1e-05,1630.4,1630.2,6.13411]
[1744714211793,1e-05,1630.4,1630.2,12.2682]
[1744714211951,1e-05,1630.4,1630.3,7.36066]
[1744714212394,1e-05,1630.4,1630.3,1.22682]
[1744714212695,1e-05,1630.4,1630.2,12.26819]
[1744714212995,1e-05,1630.4,1630.2,6.13407]
[1744714213397,1e-05,1630.4,1630.3,6.13384]
[1744714214227,1e-05,1630.4,1630.2,12.2681]
[1744714214378,1e-05,1630.4,1630.2,12.26814]
[1744714214582,1e-05,1630.4,1630.2,13.70134812]
[1744714218927,1e-05,1630.4,1630.3,6.13384]
[1744714219832,1e-05,1630.4,1630.3,9.96374]
[1744714222684,1e-05,1630.4,1630.3,10.02506339]
[1744714223013,1e-05,1630.4,1630.3,9.96374]
[1744714223217,1e-05,1630.4,1630.3,12.63270591]
[1744714224036,1e-05,1630.4,1630.3,13.18270591]
[1744714224181,1e-05,1630.4,1630.3,19.24270591]
[1744714224609,1e-05,1630.4,1630.3,18.69270591]
[1744714227733,1e-05,1630.4,1630.3,14.86280591]
[1744714228829,1e-05,1630.4,1630.3,6.06]
[1744714228985,0.81901,1630.4,1630.3,6.06]
[1744714230683,6.95247,1630.4,1630.3,6.06]
[1744714231188,0.81901,1630.4,1630.3,6.31832201]
[1744714232986,6.95247,1630.4,1630.3,6.31832201]
[1744714233284,0.81901,1630.4,1630.3,6.31832201]
[1744714233490,8.26104,1630.4,1630.3,0.25832201]
[1744714233697,13.87904,1630.4,1630.3,0.25832201]
[1744714233900,6.13418,1630.3,1629.9,12.27044]
[1744714234099,6.13461,1630.1,1629.8,9.97888095]
[1744714234347,6.13461,1630.1,1629.8,15.29578095]
[1744714234547,12.2694,1630.1,1629.8,6.13557]
[1744714234751,6.13461,1630.1,1629.7,18.33206]
[1744714234898,6.13499,1630.0,1629.7,18.33206]
[1744714235103,6.13499,1630.0,1629.7,8.57753709]
[1744714235414,0.7706,1629.9,1629.7,14.71346709]
[1744714235733,0.7706,1629.9,1629.7,20.84942709]
[1744714235937,0.7706,1629.9,1629.7,6.06]
[1744714236111,6.13572,1629.8,1629.7,6.06]
[1744714238434,6.90612,1629.9,1629.4,12.27419]
[1744714238435,6.9432,1629.7,1629.4,6.13708]
[1744714239008,0.8069,1629.7,1629.5,6.13683]
[1744714239614,0.8069,1629.7,1629.4,12.27417]
[1744714239843,0.8069,1629.7,1629.4,13.93252398]
[1744714240818,0.7649,1629.9,1629.7,6.13609]
[1744714241023,6.4326,1630.0,1629.8,6.38224678]
[1744714241351,5.618,1630.0,1629.9,6.13534]
[1744714241522,0.8229,1630.3,1630.0,6.13496]
[1744714241841,0.8229,1630.3,1630.1,6.37977552]
[1744714242050,0.8229,1630.3,1630.1,0.24552552]
[1744714243141,6.95684,1630.3,1630.1,0.24552552]
[1744714243347,6.13421,1630.2,1630.1,0.24552552]
[1744714243708,6.13421,1630.2,1629.9,12.27052]
[1744714243913,6.13421,1630.2,1630.1,0.24552552]
[1744714244113,6.13421,1630.2,1629.9,6.13523]
[1744714244314,6.13421,1630.2,1630.1,0.24552552]
[1744714244551,6.13421,1630.2,1629.9,6.13521]
[1744714244738,6.13421,1630.2,1630.1,0.24552552]
[1744714244939,12.26859,1630.2,1629.9,6.13521]
[1744714245445,12.2686,1630.2,1630.0,0.24385708]
[1744714246047,6.89599,1630.1,1630.0,0.24385708]
[1744714246246,6.89599,1630.1,1629.7,9.94400095]
[1744714246544,6.89235,1629.9,1629.8,0.24402391]
[1744714246846,11.75415,1630.0,1629.2,12.19787]
[1744714246847,6.8938,1629.5,1629.2,12.19787]
[1744714247011,13.03084,1629.5,1629.3,0.24444099]
[1744714247550,0.7569,1629.5,1629.3,0.24444099]
[1744714247714,6.89379,1629.5,1629.3,0.24444099]
[1744714248153,0.7569,1629.5,1629.3,0.24444099]
[1744714248459,0.7569,1629.5,1629.3,6.38203099]
[1744714248848,23.65128475,1632.0,1629.7,6.13584]
[1744714248849,0.7791,1630.1,1629.7,6.13584]
[1744714249049,0.7791,1630.1,1629.7,6.13583]
[1744714249050,5.618,1630.0,1629.7,6.13583]
[1744714249236,11.75325,1630.0,1629.8,0.24836281]
[1744714249439,6.13583,1629.8,1629.5,6.13677]
[1744714249638,6.13583,1629.8,1629.6,0.24836281]
[1744714249838,6.88994,1629.9,1629.6,0.24836281]
[1744714250045,6.88994,1629.9,1629.6,6.38482281]
[1744714250258,13.02547,1629.9,1629.6,6.38482281]
[1744714250763,0.7546,1629.9,1629.6,0.24836281]
[1744714250943,5.618,1630.0,1629.7,0.8191]
[1744714251134,5.618,1630.0,1629.8,6.13548]
[1744714251334,5.618,1630.0,1629.8,6.38150612]
[1744714251535,5.618,1630.0,1629.9,6.13534]
[1744714251740,5.618,1630.0,1629.8,6.38150612]
[1744714251931,5.618,1630.0,1629.9,0.2457758]
[1744714252125,13.006089,1630.0,1629.9,0.2457758]
[1744714252326,13.006089,1630.0,1629.7,6.13599]
[1744714252527,5.618,1630.0,1629.5,0.815]
[1744714252838,6.13611,1629.7,1629.4,9.96987095]
[1744714253340,6.13611,1629.7,1629.4,16.10699095]
[1744714253871,0.8247,1629.8,1629.5,6.13669]
[1744714254173,0.8247,1629.8,1629.5,12.27352]
[1744714254999,0.80843895,1629.8,1629.5,12.27352]
[1744714255179,0.80843895,1629.8,1629.6,6.13639]
[1744714255346,0.80843895,1629.8,1629.6,12.27278]
[1744714255669,0.80843895,1629.8,1629.6,6.13639]
[1744714256162,0.80843895,1629.8,1629.7,0.24602612]
[1744714256361,11.75305,1630.0,1629.7,0.24602612]
[1744714256562,11.75305,1630.0,1629.4,9.96979095]
[1744714256762,6.13545,1629.9,1629.8,0.24635989]
[1744714256964,6.13545,1629.9,1629.6,12.27264]
[1744714257182,6.13545,1629.9,1629.8,0.24635989]
[1744714257383,11.75305,1630.0,1629.7,6.13599]
[1744714257570,11.75305,1630.0,1629.8,0.24635989]
[1744714257773,17.88817,1630.0,1629.8,0.24635989]
[1744714258084,18.71299,1630.0,1629.8,0.24635989]
[1744714258548,20.584289,1630.0,1629.6,12.27277]
[1744714258752,18.71299,1630.0,1629.9,0.24635989]
[1744714259091,18.71287,1630.0,1629.7,6.13609]
[1744714259290,5.618,1630.0,1629.8,6.13555]
[1744714259491,5.618,1630.0,1629.8,6.38190989]
[1744714259785,5.618,1630.0,1629.8,12.51751989]
[1744714259959,0.8247,1629.9,1629.8,0.24635989]
[1744714260680,6.4427,1630.0,1629.8,6.38207989]
[1744714260894,6.4427,1630.0,1629.8,0.24635989]
[1744714260895,6.13534,1629.9,1629.8,0.24635989]
[1744714261391,6.13573,1629.8,1629.5,13.08176]
[1744714262189,12.27169,1629.8,1629.5,6.94498]
[1744714262369,6.89452,1629.7,1629.4,16.08007095]
[1744714262569,6.89452,1629.7,1629.4,18.23185668]
[1744714262771,0.7584,1629.7,1629.5,6.13677]
[1744714263071,0.7584,1629.7,1629.5,12.2735]
[1744714263273,0.7584,1629.9,1629.6,12.27294]
[1744714263473,0.7584,1629.9,1629.7,6.13588]
[1744714263785,17.88811,1630.0,1629.7,6.13588]
[1744714264001,11.75301,1630.0,1629.7,13.03826]